bitfinex/quotes_ETHUSD_20250920
["timestamp","ask_amount","ask_price","bid_price","bid_amount"]
[1758340357615,7.39734157,4472.4,4472.3,3.706]
[1758340357787,9.63327753,4472.4,4472.3,3.706]
[1758340358305,9.86177753,4472.4,4472.3,3.706]
[1758340358705,7.62584157,4472.4,4472.3,3.706]
[1758340358908,9.63327753,4472.4,4472.3,3.706]
[1758340360112,9.86177753,4472.4,4472.3,3.706]
[1758340366019,9.63327753,4472.4,4472.3,0.001]
[1758340366215,9.86957753,4472.4,4472.3,0.001]
[1758340370202,9.86953938,4472.4,4472.3,0.001]
[1758340372010,9.63323938,4472.4,4472.3,0.001]
[1758340372906,9.86953938,4472.4,4472.3,0.001]
[1758340376406,10.07935435,4472.4,4472.3,0.001]
[1758340376602,7.60711839,4472.4,4472.3,0.001]
[1758340376810,9.84305435,4472.4,4472.3,0.001]
[1758340378435,10.07935435,4472.4,4472.3,0.001]
[1758340384943,10.07934048,4472.4,4472.3,0.001]
[1758340387167,5.57136018,4472.4,4472.3,0.001]
[1758340387468,9.84304048,4472.4,4472.3,0.2443]
[1758340387878,7.60710452,4472.4,4472.3,0.2443]
[1758340388074,9.84304048,4472.4,4472.3,0.001]
[1758340388258,9.84304048,4472.4,4472.3,0.2443]
[1758340391852,5.57136018,4472.4,4472.3,0.2443]
[1758340392767,5.44573706,4472.4,4472.3,0.001]
[1758340392950,5.57159827,4472.4,4472.3,0.001]
[1758340396072,5.57159827,4472.4,4472.3,0.2372]
[1758340396280,5.36179717,4472.4,4472.3,0.2372]
[1758340396869,5.36180554,4472.4,4472.3,0.2372]
[1758340398177,5.5715901,4472.4,4472.3,0.2372]
[1758340400980,5.57159615,4472.4,4472.3,0.001]
[1758340401750,5.57159615,4472.4,4472.3,0.2372]
[1758340404945,5.57160856,4472.4,4472.3,0.2372]
[1758340405562,5.57160856,4472.4,4472.3,0.001]
[1758340408374,5.361824,4472.4,4472.3,0.001]
[1758340409285,5.57168267,4472.4,4472.3,0.001]
[1758340409989,5.57171192,4472.4,4472.3,0.001]
[1758340415182,5.56971192,4472.4,4472.3,0.001]
[1758340420376,5.35985325,4472.4,4472.3,0.001]
[1758340421303,5.56975905,4472.4,4472.3,0.001]
[1758340424305,5.81885905,4472.4,4472.3,0.001]
[1758340424666,5.81888485,4472.4,4472.3,0.001]
[1758340424869,10.86631561,4472.4,4472.3,0.001]
[1758340439430,10.86831561,4472.4,4472.3,0.001]
[1758340447519,10.86471561,4472.4,4472.3,0.001]
[1758340451612,2.23608595,4472.1,4472.0,0.001]
[1758340451844,5.57193484,4472.1,4472.0,0.001]
[1758340452007,5.81743484,4472.1,4472.0,0.001]
[1758340452833,5.9070941,4472.1,4472.0,0.001]
[1758340453754,14.45691474,4472.1,4472.0,0.001]
[1758340455380,14.45677563,4472.1,4472.0,0.001]
[1758340463183,14.24687007,4472.1,4472.0,0.001]
[1758340463366,14.21098094,4472.1,4472.0,0.001]
[1758340464549,9.93607062,4472.1,4472.0,0.001]
[1758340465283,10.18447062,4472.1,4472.0,0.001]
[1758340466082,14.45938094,4472.1,4472.0,0.001]
[1758340467374,14.45939781,4472.1,4472.0,0.001]
[1758340479135,14.21099781,4472.1,4472.0,0.001]
[1758340479432,14.21121895,4472.1,4472.0,0.001]
[1758340479929,9.93630863,4472.1,4472.0,0.001]
[1758340487209,9.93652759,4472.1,4472.0,0.001]
[1758340489041,5.66161727,4472.1,4472.0,0.001]
[1758340489236,9.93652759,4472.1,4472.0,0.001]
[1758340500627,10.18022759,4472.1,4472.0,0.001]
[1758340508277,9.93652759,4472.1,4472.0,0.001]
[1758340511869,12.29352759,4472.1,4472.0,0.001]
[1758340512043,9.93652759,4472.1,4472.0,0.001]
[1758340512342,10.18022759,4472.1,4472.0,0.001]
[1758340513574,9.93652759,4472.1,4472.0,0.001]
[1758340513777,10.71074826,4472.1,4472.0,0.001]
[1758340514778,10.95974826,4472.1,4472.0,0.001]
[1758340520674,11.00856208,4472.1,4472.0,0.001]
[1758340520879,11.5284697,4472.1,4472.0,0.001]
[1758340525809,11.23065588,4472.1,4472.0,0.001]
[1758340526708,11.5284697,4472.1,4472.0,0.001]
[1758340534248,2.23653605,4471.2,4471.1,0.001]
[1758340534528,14.3245391,4471.2,4471.1,0.001]
[1758340534712,14.59544672,4471.2,4471.1,0.001]
[1758340536505,10.89244672,4471.2,4471.1,0.001]
[1758340536734,14.60544672,4471.2,4471.1,0.244]
[1758340536893,14.60544672,4471.2,4471.1,0.001]
[1758340537098,3.0,4471.1,4470.6,0.001]
[1758340537299,10.28586714,4470.8,4470.6,0.001]
[1758340537502,10.6217392,4470.8,4470.6,0.001]
[1758340537728,10.71074991,4470.8,4470.6,0.001]
[1758340540812,10.71074991,4470.8,4470.6,0.2235]
[1758340541111,10.71074991,4470.8,4470.7,0.2235]
[1758340541542,10.37555314,4470.8,4470.7,0.2235]
[1758340541847,10.71054496,4470.8,4470.7,0.2235]
[1758340542559,10.82418479,4470.8,4470.7,0.2235]
[1758340542744,10.82418479,4470.8,4470.7,0.001]
[1758340552356,13.18118479,4470.8,4470.7,0.001]
[1758340552561,5.7750538,4470.8,4470.7,0.2235]
[1758340553665,5.7750538,4470.8,4470.7,0.001]
[1758340554569,6.0133538,4470.8,4470.7,0.001]
[1758340555083,5.7750538,4470.8,4470.7,0.001]
[1758340555690,5.66141397,4470.8,4470.7,0.2235]
[1758340557392,5.45213062,4470.8,4470.7,0.2235]
[1758340557597,5.66164474,4470.8,4470.7,0.2235]
[1758340559805,5.66364474,4470.8,4470.7,0.2235]
[1758340560921,5.66380967,4470.8,4470.7,0.2235]
[1758340561711,5.66380967,4470.8,4470.7,0.001]
[1758340565298,5.53803935,4470.8,4470.7,0.001]
[1758340565596,5.66423888,4470.8,4470.7,0.001]
[1758340566500,5.45435296,4470.8,4470.7,0.001]
[1758340566802,5.32842215,4470.8,4470.7,0.001]
[1758340567976,5.66423407,4470.8,4470.7,0.001]
[1758340568592,5.66423407,4470.8,4470.7,0.2235]
[1758340568800,5.66423407,4470.8,4470.7,0.001]
[1758340570512,3.42749635,4470.8,4470.7,0.001]
[1758340570676,3.42749635,4470.8,4470.7,0.2235]
[1758340570879,5.6642325,4470.8,4470.7,0.2235]
[1758340571910,5.6642325,4470.8,4470.7,0.001]
[1758340576940,5.6142325,4470.8,4470.7,0.001]
[1758340579343,5.6142325,4470.8,4470.7,0.2235]
[1758340579708,3.37749635,4470.8,4470.7,0.2235]
[1758340580112,3.1676139,4470.8,4470.7,0.2235]
[1758340581210,5.40435005,4470.8,4470.7,0.2235]
[1758340583443,5.40435005,4470.8,4470.7,0.001]
[1758340584843,3.1676139,4470.8,4470.7,0.001]
[1758340585344,5.40435005,4470.8,4470.7,0.001]
[1758340586445,3.0,4470.7,4470.5,0.1745]
[1758340586649,0.1259279,4470.6,4470.5,0.1745]
[1758340587516,0.1259279,4470.6,4470.2,2.23802624]
[1758340587840,0.1259279,4470.5,4470.2,2.88004692]
[1758340588046,0.1259279,4470.4,4470.2,2.88004692]
[1758340588341,0.002,4470.8,4470.2,2.88004692]
[1758340588542,0.1258164,4470.7,4470.2,2.88004692]
[1758340588746,0.1258164,4470.6,4470.2,2.88004692]
[1758340588943,0.1258164,4470.5,4470.3,0.40545854]
[1758340589150,0.1258164,4470.4,4470.3,0.40545854]
[1758340590452,0.1258164,4470.4,4470.3,2.64244487]
[1758340591245,0.1258164,4470.4,4470.3,0.40545854]
[1758340592457,0.1258164,4470.4,4470.3,4.11345854]
[1758340594752,0.1258164,4470.4,4470.3,6.37281473]
[1758340594966,0.1258164,4470.4,4470.3,6.35144487]
[1758340604261,0.12583582,4470.4,4470.3,6.35144487]
[1758340613989,0.12592499,4470.4,4470.3,6.35144487]
[1758340619404,0.002,4470.5,4470.4,2.23693629]
[1758340619582,0.12791167,4470.5,4470.4,2.23693629]
[1758340622404,0.12791167,4470.5,4470.3,6.35143377]
[1758340622590,0.002,4470.5,4470.3,6.35143377]
[1758340622993,0.002,4470.5,4470.3,4.11445854]
[1758340623508,0.002,4470.5,4470.3,6.3514448]
[1758340625905,0.002,4470.5,4470.3,4.11445854]
[1758340626219,0.002,4470.5,4470.3,3.709]
[1758340626512,0.002,4470.5,4470.3,5.94597403]
[1758340627209,0.002,4470.5,4470.4,1.935]
[1758340627404,0.12789927,4470.5,4470.4,1.935]
[1758340628609,0.12789927,4470.5,4470.4,4.17193629]
[1758340629289,0.12789927,4470.5,4470.4,1.935]
[1758340638925,0.80038292,4470.5,4470.4,1.935]
[1758340644515,0.80044484,4470.5,4470.4,1.935]
[1758340645341,0.80044484,4470.5,4470.4,1.95736936]
[1758340646030,0.80044484,4470.5,4470.4,1.935]
[1758340646933,0.80044484,4470.5,4470.4,4.19430565]
[1758340647633,0.80044484,4470.5,4470.4,1.95736936]
[1758340647828,0.80044484,4470.5,4470.4,4.19430565]
[1758340649304,0.67448365,4470.5,4470.4,5.3839398]
[1758340649508,0.67448365,4470.5,4470.4,5.36157044]
[1758340652751,0.002,4470.5,4470.4,5.97907044]
[1758340653061,0.002,4470.5,4470.4,6.15357044]
[1758340665678,0.002,4470.5,4470.4,6.24321202]
[1758340669375,0.002,4470.5,4470.4,5.45121202]
[1758340669578,0.002,4470.5,4470.4,6.24321202]
[1758340670458,1e-08,4470.8,4470.7,8.07855947]
[1758340670656,1e-08,4470.8,4470.7,13.13552892]
[1758340670900,1e-08,4470.8,4470.7,13.31002892]
[1758340671054,1e-08,4470.8,4470.7,13.39965644]
[1758340672963,1e-08,4470.8,4470.7,12.60765644]
[1758340673292,1e-08,4470.8,4470.7,13.39965644]
[1758340675389,1e-08,4470.8,4470.7,13.67452751]
[1758340697767,1e-08,4470.8,4470.7,12.89644551]
[1758340702449,1e-08,4470.8,4470.7,13.07094551]
[1758340703097,1e-08,4470.8,4470.7,12.89644551]
[1758340703798,1e-08,4470.8,4470.7,18.94144551]
[1758340718312,1e-08,4470.8,4470.7,20.87544551]
[1758340719023,0.249,4472.0,4470.8,0.792]
[1758340719175,1e-08,4471.7,4471.6,7.30002727]
[1758340719369,1e-08,4471.7,4471.6,12.94102727]
[1758340720704,1e-08,4471.7,4471.6,13.18802727]
[1758340720904,1e-08,4471.7,4471.6,14.74792093]
[1758340726742,1e-08,4471.9,4471.8,2.23623596]
[1758340726946,1e-08,4471.9,4471.8,11.0282896]
[1758340727143,1e-08,4471.9,4471.8,11.00592725]
[1758340733750,0.002,4473.1,4471.9,0.792]
[1758340733751,1e-08,4472.3,4471.9,0.792]
[1758340733918,1e-08,4472.3,4472.2,3.02803595]
[1758340734117,1e-08,4472.3,4472.2,6.73803595]
[1758340734648,1e-08,4472.3,4472.2,6.82763175]
[1758340735550,0.24030001,4472.3,4472.2,11.09932304]
[1758340735752,0.24030001,4472.3,4472.2,12.75300053]
[1758340736450,0.002,4472.7,4472.3,3.02798595]
[1758340738453,0.24030001,4472.6,4472.3,3.02798595]
[1758340742159,0.24030001,4472.6,4472.3,9.07098595]
[1758340743856,0.2474,4472.4,4472.3,8.27898595]
[1758340744061,0.2474,4472.4,4472.3,11.98698595]
[1758340744267,0.002,4472.4,4472.3,12.77898595]
[1758340744560,0.002,4472.4,4472.3,14.21024772]
[1758340745263,0.2474,4472.4,4472.3,14.21024772]
[1758340749242,0.002,4472.4,4472.3,9.07098595]
[1758340749565,0.2474,4472.4,4472.3,12.78298595]
[1758340754674,0.2474,4472.4,4472.3,9.07098595]
[1758340754839,0.2474,4472.4,4472.3,12.78298595]
[1758340765699,0.2474,4472.4,4472.3,12.78398595]
[1758340769304,0.002,4472.4,4472.3,12.78398595]
[1758340770808,0.002,4472.4,4472.3,14.71798595]
[1758340771805,0.002,4472.4,4472.3,13.92598595]
[1758340772103,0.24,4472.4,4472.3,13.92598595]
[1758340775582,0.002,4472.4,4472.3,13.92598595]
[1758340777613,0.002,4472.4,4472.3,14.71798595]
[1758340777772,0.002,4472.4,4472.3,14.95108595]
[1758340790041,0.002,4472.4,4472.3,8.90808595]
[1758340800347,0.002,4472.4,4472.3,4.96298595]
[1758340800551,0.235,4472.4,4472.3,8.67098595]
[1758340801343,0.235,4472.4,4472.3,1.935]
[1758340801678,0.235,4472.4,4472.3,5.642]
[1758340803782,0.235,4472.4,4472.3,7.87798595]
[1758340803958,0.002,4472.4,4472.3,7.87798595]
[1758340804481,0.002,4472.4,4472.3,8.12758595]
[1758340806470,0.002,4472.4,4472.3,7.87798595]
[1758340811164,0.235,4472.4,4472.3,5.642]
[1758340811469,0.235,4472.4,4472.3,7.87798595]
[1758340811913,0.235,4472.4,4472.3,7.87898595]
[1758340812068,0.002,4472.4,4472.3,7.87898595]
[1758340813999,0.002,4472.4,4472.3,5.643]
[1758340814504,0.002,4472.4,4472.3,7.87898595]
[1758340818490,0.002,4472.4,4472.3,5.643]
[1758340819289,1e-08,4472.6,4472.3,5.643]
[1758340819625,0.01,4610.9,4472.4,2.23593596]
[1758340819626,0.09161869,4472.5,4472.4,2.23593596]
[1758340820325,0.09161869,4472.5,4472.3,7.87897487]
[1758340821393,0.09161869,4472.5,4472.4,2.23593596]
[1758340826118,0.09161869,4472.5,4472.4,2.49439531]
[1758340826421,0.09161869,4472.5,4472.4,4.13713786]
[1758340826834,0.09161869,4472.5,4472.4,4.92913786]
[1758340827139,0.09161869,4472.5,4472.4,4.90677851]
[1758340828216,0.1258208,4473.2,4472.8,2.23572909]
[1758340828416,0.1258208,4473.1,4472.9,5.64]
[1758340828625,0.1258208,4473.0,4472.9,5.64]
[1758340829333,0.79792479,4473.0,4472.9,5.64]
[1758340833023,0.79992479,4473.0,4472.9,5.64]
[1758340835262,0.37514919,4473.0,4472.9,5.64]
[1758340848583,0.37514919,4473.0,4472.9,8.11188602]
[1758340849778,0.37514919,4473.0,4472.9,5.8762]
[1758340850577,0.37514919,4473.0,4472.9,5.64]
[1758340852079,0.37514919,4473.0,4472.9,7.87568602]
[1758340852579,0.37514919,4473.0,4472.9,5.64]
[1758340861100,0.37514919,4473.0,4472.9,7.87568602]
[1758340861307,0.37514919,4473.0,4472.9,5.64]
[1758340864505,0.37514919,4473.0,4472.9,7.87568602]
[1758340864809,0.37514919,4473.0,4472.9,5.64]
[1758340866313,0.37514919,4473.0,4472.9,1.934]
[1758340866476,5.72268522,4473.0,4472.9,5.638]
[1758340866812,9.99330823,4473.0,4472.9,1.934]
[1758340866987,5.23568602,4472.9,4472.8,0.001]
[1758340867174,5.57146959,4472.9,4472.8,3.707]
[1758340867376,5.68336959,4472.9,4472.8,3.707]
[1758340877653,5.57146959,4472.9,4472.8,0.001]
[1758340877951,2.23588596,4472.5,4472.4,0.001]
[1758340878116,9.84229254,4472.5,4472.4,0.001]
[1758340878316,9.95419254,4472.5,4472.4,0.001]
[1758340879346,10.62658123,4472.5,4472.4,0.001]
[1758340881953,12.98358123,4472.5,4472.4,0.001]
[1758340882254,10.62658123,4472.5,4472.4,0.001]
[1758340883948,11.40502424,4472.5,4472.4,0.001]
[1758340885156,11.29312424,4472.5,4472.4,0.001]
[1758340888155,11.29312424,4472.5,4472.4,0.2429]
[1758340888758,11.08326189,4472.5,4472.4,0.2429]
[1758340889828,11.08326189,4472.5,4472.4,0.001]
[1758340891150,11.29216869,4472.5,4472.4,0.2429]
[1758340891348,11.08326189,4472.5,4472.4,0.2429]
[1758340892689,6.03419587,4472.5,4472.4,0.2429]
[1758340893464,3.79830991,4472.5,4472.4,0.2429]
[1758340893673,6.03419587,4472.5,4472.4,0.2429]
[1758340899765,3.79830991,4472.5,4472.4,0.2429]
[1758340900399,6.03419587,4472.5,4472.4,0.2429]
[1758340900603,3.79830991,4472.5,4472.4,0.2429]
[1758340902790,6.03419587,4472.5,4472.4,0.001]
[1758340902990,11.08326189,4472.5,4472.4,0.001]
[1758340904017,8.84737593,4472.5,4472.4,0.001]
[1758340904184,8.84737593,4472.5,4472.4,0.2349]
[1758340904702,11.08326189,4472.5,4472.4,0.2349]
[1758340906017,11.08326189,4472.5,4472.1,0.01]
[1758340906018,5.23593596,4472.4,4472.1,0.01]
[1758340906218,5.36185718,4472.4,4472.1,0.01]
[1758340907192,5.57130198,4472.4,4472.1,0.01]
[1758340909025,5.36185718,4472.4,4472.1,0.01]
[1758340910628,2.36185718,4472.4,4472.3,0.2349]
[1758340910805,0.12592122,4472.4,4472.3,0.2349]
[1758340911196,2.36185718,4472.4,4472.3,0.2349]
[1758340917535,0.12592122,4472.4,4472.3,0.2349]
[1758340917913,0.12592122,4472.4,4472.3,3.06097595]
[1758340918298,0.12592122,4472.4,4472.3,0.82499]
[1758340918796,0.08964922,4472.5,4472.3,3.06097595]
[1758340918992,0.08964922,4472.5,4472.4,0.2339]
[1758340921229,0.21540288,4472.5,4472.4,0.2339]
[1758340921436,0.08964922,4472.5,4472.4,0.2339]
[1758340922413,0.09164922,4472.5,4472.4,0.2339]
[1758340923241,0.09164922,4472.5,4472.4,2.46983596]
[1758340924215,0.09164922,4472.5,4472.4,3.56603698]
[1758340924412,0.002,4472.5,4472.4,3.56603698]
[1758340924739,0.1277055,4472.5,4472.4,1.33010102]
[1758340924915,0.1277055,4472.5,4472.4,0.2471]
[1758340925234,0.1277055,4472.5,4472.3,0.001]
[1758340925416,0.1277055,4472.5,4472.4,3.72]
[1758340925749,0.25333956,4472.5,4472.4,3.72]
[1758340928037,0.2533353,4472.5,4472.4,3.72]
[1758340929006,0.2533353,4472.5,4472.3,0.001]
[1758340929207,5.36156576,4472.4,4472.3,0.001]
[1758340929436,2.47346576,4472.4,4472.3,3.721]
[1758340929940,2.47346576,4472.4,4472.3,3.722]
[1758340932275,2.47346576,4472.4,4472.3,3.721]
[1758340932753,2.47346576,4472.4,4472.3,0.001]
[1758340932754,2.6828073,4472.4,4472.3,0.001]
[1758340935841,2.68269587,4472.4,4472.3,0.001]
[1758340939362,5.57079587,4472.4,4472.3,0.001]
[1758340939561,5.57079587,4472.4,4472.3,0.2344]
[1758340939927,5.36356576,4472.4,4472.3,0.2344]
[1758340940449,3.1276298,4472.4,4472.3,0.2344]
[1758340941033,5.36356576,4472.4,4472.3,0.2344]
[1758340941446,3.1276298,4472.4,4472.3,0.2344]
[1758340942053,5.36356576,4472.4,4472.3,0.2344]
[1758340943763,9.63648644,4472.4,4472.3,0.2344]
[1758340947742,9.63635208,4472.4,4472.3,0.2344]
[1758340952822,9.63635208,4472.4,4472.3,0.001]
[1758340953017,9.63635208,4472.4,4472.3,0.2344]
[1758340953226,7.40041612,4472.4,4472.3,0.2344]
[1758340953430,9.63635208,4472.4,4472.3,0.2344]
[1758340962735,9.63635208,4472.4,4472.3,0.001]
[1758340974469,9.95799797,4472.4,4472.3,3.622]
[1758340974667,9.84609797,4472.4,4472.3,3.622]
[1758340979450,9.84643998,4472.4,4472.3,3.622]
[1758340979979,7.61050402,4472.4,4472.3,3.8521]
[1758340980184,3.33758334,4472.4,4472.3,3.8521]
[1758340981589,5.5735193,4472.4,4472.3,3.8521]
[1758340981881,3.33758334,4472.4,4472.3,3.8521]
[1758340982279,5.5735193,4472.4,4472.3,3.8521]
[1758340982477,3.33758334,4472.4,4472.3,3.8521]
[1758340982652,5.5735193,4472.4,4472.3,3.8521]
[1758340983297,5.36377341,4472.4,4472.3,3.8521]
[1758340984455,5.36377341,4472.4,4472.3,3.622]
[1758340986502,5.36377341,4472.4,4472.3,3.8523]
[1758340988012,3.12783745,4472.4,4472.3,3.8523]
[1758340988310,5.36377341,4472.4,4472.3,3.8523]
[1758340991717,9.63669409,4472.4,4472.3,3.8523]
[1758340992223,0.12783745,4472.4,4472.3,3.8523]
[1758340992392,0.002,4472.4,4472.3,4.23863]
[1758340992588,0.002,4472.4,4472.3,6.47461595]
[1758340995583,0.002,4472.4,4472.3,4.23863]
[1758340996213,0.002,4472.4,4472.3,6.47461595]
[1758341004722,0.002,4472.4,4472.3,4.00833]
[1758341005125,0.002,4472.4,4472.3,3.622]
[1758341005423,0.002,4472.4,4472.3,3.8641]
[1758341006097,0.002,4472.4,4472.3,5.85798595]
[1758341006514,0.002,4472.4,4472.3,3.622]
[1758341006988,0.002,4472.4,4472.3,3.713]
[1758341008246,0.002,4472.4,4472.3,3.9551]
[1758341009745,0.002,4472.4,4472.3,3.713]
[1758341009911,2.34983596,4472.4,4472.3,0.001]
[1758341010115,5.47542452,4472.4,4472.3,3.714]
[1758341010314,5.47542452,4472.4,4472.3,0.001]
[1758341010645,5.47542452,4472.4,4472.3,3.714]
[1758341013947,5.47542452,4472.4,4472.3,0.001]
[1758341014149,5.47542452,4472.4,4472.3,3.713]
[1758341014720,5.68475623,4472.4,4472.3,0.001]
[1758341014949,5.68475623,4472.4,4472.3,3.714]
[1758341015118,10.61910311,4472.4,4472.3,3.714]
[1758341015318,10.73100311,4472.4,4472.3,3.714]
[1758341018855,10.73100311,4472.4,4472.3,0.001]
[1758341025672,10.73050856,4472.4,4472.3,0.001]
[1758341029480,10.61860856,4472.4,4472.3,0.001]
[1758341031483,10.73050856,4472.4,4472.3,0.001]
[1758341032791,3.0,4472.3,4472.1,0.01]
[1758341032990,0.33442572,4472.2,4472.1,0.01]
[1758341033161,3.44632572,4472.2,4472.1,0.01]
[1758341033466,5.68236167,4472.2,4472.1,0.01]
[1758341034803,5.57046167,4472.2,4472.1,0.01]
[1758341035160,5.57046167,4472.2,4472.1,0.2561]
[1758341037485,5.57066973,4472.2,4472.1,0.2561]
[1758341038286,5.57066973,4472.2,4472.1,0.01]
[1758341038710,5.68256973,4472.2,4472.1,0.01]
[1758341039603,5.68256973,4472.2,4472.1,0.011]
[1758341040883,5.57066973,4472.2,4472.1,0.011]
[1758341043103,7.92766973,4472.2,4472.1,0.011]
[1758341043270,5.57066973,4472.2,4472.1,0.011]
[1758341043477,5.57066973,4472.2,4472.1,0.2458]
[1758341044212,5.57108918,4472.2,4472.1,0.2458]
[1758341046032,5.57108918,4472.2,4472.1,0.011]
[1758341046728,5.68298918,4472.2,4472.1,0.011]
[1758341048823,5.57108918,4472.2,4472.1,0.011]
[1758341049537,5.68300431,4472.2,4472.1,0.011]
[1758341051503,5.57110431,4472.2,4472.1,0.011]
[1758341052139,5.23603595,4472.2,4472.1,0.011]
[1758341052306,5.5711424,4472.2,4472.1,0.011]
[1758341053218,7.9281424,4472.2,4472.1,0.011]
[1758341053422,5.5711424,4472.2,4472.1,0.011]
[1758341053822,5.6830424,4472.2,4472.1,0.011]
[1758341054020,5.5711424,4472.2,4472.1,0.011]
[1758341061669,5.57132065,4472.2,4472.1,0.011]
[1758341065892,14.12113745,4472.2,4472.1,0.011]
[1758341066582,9.84622905,4472.2,4472.1,0.2433]
[1758341070672,9.84622905,4472.2,4472.1,0.011]
[1758341079587,14.12113745,4472.2,4472.1,0.011]
[1758341080555,9.84622905,4472.2,4472.1,0.011]
[1758341084187,9.84641559,4472.2,4472.1,0.011]
[1758341084773,9.84641559,4472.2,4472.1,0.2437]
[1758341085387,9.84641559,4472.2,4472.1,0.011]
[1758341090072,14.12132399,4472.2,4472.1,0.011]
[1758341091700,17.83132399,4472.2,4472.1,0.011]
[1758341093790,14.12132399,4472.2,4472.1,0.011]
[1758341101428,9.84641559,4472.2,4472.1,0.011]
[1758341101597,9.84641559,4472.2,4472.1,0.2451]
[1758341102391,9.84641559,4472.2,4472.1,0.011]
[1758341103526,14.12132399,4472.2,4472.1,0.011]
[1758341104119,16.47832399,4472.2,4472.1,0.011]
[1758341104533,14.12132399,4472.2,4472.1,0.011]
[1758341112119,9.84641559,4472.2,4472.1,0.011]
[1758341112318,9.84641559,4472.2,4472.1,0.2451]
[1758341114164,12.20341559,4472.2,4472.1,0.2451]
[1758341114323,9.84641559,4472.2,4472.1,0.2451]
[1758341114673,9.8463035,4472.2,4472.1,0.2451]
[1758341122383,9.84643639,4472.2,4472.1,0.2451]
[1758341125811,10.62058571,4472.2,4472.1,0.2451]
[1758341130311,10.62055911,4472.2,4472.1,0.2451]
[1758341131623,0.33546544,4472.2,4472.1,0.2451]
[1758341131837,0.12580951,4472.2,4472.1,0.2451]
[1758341132326,0.12580951,4472.2,4472.1,0.48577085]
[1758341132533,0.12580951,4472.2,4472.1,0.46341]
[1758341132744,0.12580951,4472.2,4472.1,0.48577085]
[1758341134304,0.09166288,4472.3,4472.1,0.48577085]
[1758341134501,0.09166288,4472.3,4472.2,0.2304]
[1758341134699,0.09166288,4472.3,4472.2,1.06692501]
[1758341143714,0.09166288,4472.3,4472.2,0.83652501]
[1758341143914,0.09166288,4472.3,4472.2,1.07862501]
[1758341144316,0.09166288,4472.3,4472.2,3.709]
[1758341144317,3.09166288,4472.3,4472.2,3.709]
[1758341144522,3.21695561,4472.3,4472.2,3.709]
[1758341144901,3.21695568,4472.3,4472.1,0.011]
[1758341145139,2.36132154,4472.2,4472.1,0.011]
[1758341145341,2.36132154,4472.2,4472.1,2.186]
[1758341146515,0.12528559,4472.2,4472.1,2.186]
[1758341146851,2.36132154,4472.2,4472.1,2.186]
[1758341147239,0.12528559,4472.2,4472.1,2.186]
[1758341147410,2.36132154,4472.2,4472.1,2.186]
[1758341149154,2.36132154,4472.2,4472.1,3.72]
[1758341151662,0.12528559,4472.2,4472.1,3.72]
[1758341152018,0.12528559,4472.2,4472.1,3.9621]
[1758341154961,0.12528559,4472.2,4472.1,3.72]
[1758341155263,0.12528559,4472.2,4472.1,3.9621]
[1758341161670,0.12528559,4472.2,4472.1,3.72]
[1758341161850,2.36132154,4472.2,4472.1,3.72]
[1758341163667,0.12528559,4472.2,4472.1,3.72]
[1758341164564,0.12528559,4472.2,4472.1,3.9583]
[1758341166163,0.12528559,4472.2,4472.1,4.43755544]
[1758341169968,0.12571827,4472.2,4472.1,4.43755544]
[1758341175772,0.12571827,4472.2,4472.1,6.67364139]
[1758341176664,0.12571827,4472.2,4472.1,4.43755544]
[1758341180074,0.12571827,4472.2,4472.1,4.43245544]
[1758341186065,0.12571827,4472.2,4472.1,4.19925544]
[1758341188168,0.12571827,4472.2,4472.1,3.72]
[1758341192005,0.12571827,4472.2,4472.1,3.9532]
[1758341198350,0.12571827,4472.2,4472.1,3.72]
[1758341201533,0.12571827,4472.2,4472.1,6.18928595]
[1758341201944,0.002,4472.3,4472.2,2.23603595]
[1758341202105,0.002,4472.3,4472.2,3.50546814]
[1758341202923,0.002,4472.3,4472.2,3.52782849]
[1758341206117,0.002,4472.3,4472.2,3.50546814]
[1758341206937,0.002,4472.3,4472.2,3.52782849]
[1758341208036,0.002,4472.3,4472.2,3.50546814]
[1758341208240,0.002,4472.3,4472.2,3.27226814]
[1758341208548,0.002,4472.3,4472.2,3.50366814]
[1758341221161,0.002,4472.3,4472.2,6.97926814]
[1758341221599,0.002,4472.3,4472.2,7.21606814]
[1758341221795,4.274541,4472.3,4472.1,0.011]
[1758341221970,4.274541,4472.3,4472.2,3.707]
[1758341222695,4.386441,4472.3,4472.2,3.707]
[1758341224557,7.386441,4472.3,4472.2,3.707]
[1758341226893,7.274541,4472.3,4472.2,3.707]
[1758341228675,3.002,4472.3,4472.2,3.707]
[1758341228870,0.002,4472.3,4472.2,5.94303595]
[1758341229075,0.002,4472.3,4472.2,6.74533595]
[1758341250675,0.002,4472.3,4472.2,6.50853595]
[1758341250853,0.002,4472.3,4472.2,6.75673595]
[1758341252635,0.002,4472.3,4472.2,6.50853595]
[1758341254264,0.002,4472.3,4472.2,6.75673595]
[1758341255682,0.002,4472.3,4472.2,7.54873595]
[1758341259701,0.002,4472.3,4472.2,2.80153595]
[1758341259859,0.002,4472.3,4472.2,5.94303595]
[1758341263695,0.002,4472.3,4472.2,3.707]
[1758341263868,0.1139,4472.3,4472.2,3.707]
[1758341269085,0.002,4472.3,4472.2,5.94303595]
[1758341270310,0.002,4472.3,4472.2,3.707]
[1758341272209,0.1139,4472.3,4472.2,3.707]
[1758341272714,0.002,4472.3,4472.2,3.707]
[1758341273181,0.002,4472.3,4472.2,5.94303595]
[1758341275217,0.002,4472.3,4472.2,6.19053595]
[1758341280324,0.002,4472.3,4472.2,7.21430297]
[1758341289065,0.002,4472.3,4472.2,6.97950297]
[1758341289236,0.002,4472.3,4472.2,5.94203595]
[1758341291462,0.002,4472.3,4472.2,2.23603595]
[1758341291878,0.002,4472.3,4472.2,5.94203595]